{"text_format":"3","workbook":"xlsx","n_sheets":3,"sheets":["LT 132 3150 31,5 3P 31 110","Deviation Schedule- 132kV CB 3P","Tool,Spare,Drwg,TypeT 132kV 3P"],"not_rendered":{"defined_names":22,"comments":1},"read":"whole","date_system":"1900"}

{"sheet":"LT 132 3150 31,5 3P 31 110","index":0,"n_rows":632,"n_cols":86,"rows_kept":632,"merged":[[0,1,0,7],[1,1,1,7],[2,1,2,7],[3,6,3,7],[4,1,4,7],[5,1,5,7],[8,3,8,4],[9,3,9,4],[18,3,18,4],[91,3,91,5],[102,3,102,5],[132,3,132,5],[139,3,139,5],[166,3,166,5],[197,3,197,5],[212,3,212,5],[218,3,218,5],[235,3,235,5],[245,3,245,5],[261,3,261,5],[276,3,276,5],[284,4,284,5],[290,3,290,5],[321,3,321,5],[349,3,349,5],[355,3,355,5],[364,3,364,5],[368,3,368,5],[377,3,377,5],[394,3,394,5],[402,3,402,5],[451,4,451,5],[471,4,471,5],[494,3,494,5],[495,4,495,5],[505,3,505,5],[506,4,506,5],[513,3,513,5],[514,3,514,5],[515,4,515,5],[531,4,531,5],[540,3,540,5],[557,3,557,5],[558,4,558,5],[565,3,565,5],[571,1,571,4],[574,1,574,2],[577,1,577,2],[580,1,580,2]]}
[null,"TECHNICAL SCHEDULES A & B FOR 6,6 kV to 765 kV "]
[null,"OUTDOOR CIRCUIT-BREAKERS"]
[null,{"$f":"\"SAP: \"&G12&\"   \"&E11","v":"SAP: _________   BKR 132kV 3150A 40kA 3P 31 110VDC"}]
[]
[null,"Schedule A:  Purchasers specific requirements"]
[null,"Schedule B: Guarantees and technical particulars of equipment offered"]
[]
[null,1,2,null,3,null,4,5]
[null,"Item ","Clause of 240-56063756","Description",null,null,"Schedule A","Schedule B"]
[null,1,null,"Item and system description"]
[{"$nulls":4},"BKR 132kV 3150A 40kA 3P 31 110VDC"]
[null,1.1,null,"·","SAP No",null,{"$f":"VLOOKUP($E$11,$M$589:$AP$608,3,FALSE)","v":"_________"},"xxxxxxxxxx"]
[null,1.2,null,"·","Buyers Guide Drawing",null,{"$f":"VLOOKUP($E$11,$M$589:$AP$608,2,FALSE)","v":"_________"},"xxxxxxxxxx"]
[null,"1.3","2.1.1","·","Circuit-breaker application",null,{"$f":"VLOOKUP($E$11,$M$589:$AP$608,27,FALSE)","v":"General-purpose"},"xxxxxxxxxx"]
[null,"1.4","3.1.1","·","Nominal system voltage (Un)","kV",{"$f":"VLOOKUP($E$11,$M$589:$AP$608,28,FALSE)","v":132},"xxxxxxxxxx"]
[null,"1.5",null,"·","System voltage range","pu","0,9 to 1,1","xxxxxxxxxx"]
[null,"1.6","3.2.1","·","System earthing (effective/non effective)",null,{"$f":"VLOOKUP($E$11,$M$589:$AP$608,29,FALSE)","v":"Non-effective"},"xxxxxxxxxx"]
[]
[null,2,null,"Ratings"]
[null,2.1,"3.1.1","·","Rated voltage (Ur)","kV",{"$f":"VLOOKUP($E$11,$M$589:$AP$608,4,FALSE)","v":145}]
[null,2.2,"3.1.1","·","Number of phases on system",null,3]
[null,2.3,"3.1.2","·","Rated short-duration power-frequency withstand voltage (Ud) - Phase-to-earth and between phases","kV",{"$f":"VLOOKUP($E$11,$M$589:$AP$608,5,FALSE)","v":275}]
[null,2.4,"3.1.2","·","Rated short-duration power-frequency withstand voltage (Ud) - Phase-to-earth and between phases - under Wet conditions as per SANS 62271-1 cl. 6.2 (Ur ≤ 245kV)","kV","xxxxxxxxxx"]
[null,2.5,"3.1.2","·","Rated short-duration power-frequency withstand voltage (Ud) - Across  open  switching  device (under Dry conditions)","kV",315]
[null,2.6,"3.1.2","·","Rated short-duration power-frequency withstand voltage (Ud) - Across  open  switching  device (under Wet conditions)","kV","xxxxxxxxxx"]
[null,"2.7","3.1.2","·","Rated short-duration power-frequency withstand voltage (Ud) - under Wet conditions as per SANS 62271-1 cl. 6.2 (Ur ≤ 245kV)","kV","xxxxxxxxxx"]
[null,"2.8","3.1.2","·","Rated peak lightning impulse withstand voltage (Up) - Phase-to-earth and between phases","kV",{"$f":"VLOOKUP($E$11,$M$589:$AP$608,6,FALSE)","v":650}]
[null,"2.9","3.1.2","·","Rated peak lightning impulse withstand voltage (Up) - Across  open  switching  device","kV",750]
[null,"2.10","3.1.2","·","Rated switching impulse withstand voltage (Us) - Phase-to-earth and across open switching device - (Dry conditions)","kV","xxxxxxxxxx"]
[null,"2.11","3.1.2","·","Rated switching impulse withstand voltage (Us) - Between phases - (Dry conditions)","kV","xxxxxxxxxx"]
[null,"2.12","3.1.2","·","Rated switching impulse withstand voltage (Us) - Phase-to-earth and across open switching device - under Wet conditions as per SANS 62271-1 cl. 6.2","kV","xxxxxxxxxx"]
[null,"2.13","3.1.2","·","Rated switching impulse withstand voltage (Us) - Between phases - under Wet conditions as per SANS 62271-1 cl. 6.2","kV","xxxxxxxxxx"]
[null,"2.14","3.1.3","·","Rated frequency (fr)","Hz",50]
[null,"2.15","3.1.4","·","Rated normal current (Ir) - main circuit","A",{"$f":"VLOOKUP($E$11,$M$589:$AP$608,8,FALSE)","v":3150}]
[null,"2.16","3.1.4 f)","·","Calculated maximum continuous current - main circuit @ 40 0C ambient","A","xxxxxxxxxx"]
[null,"2.17","3.1.4 f)","·","Calculated maximum continuous current - main circuit @ 45 0C ambient","A","xxxxxxxxxx"]
[null,"2.18","3.1.4 g)","·","Maximum allowable temperature of main contacts (refer to Table 3 of SANS 62271-1)","OC","xxxxxxxxxx"]
[null,"2.19","3.1.4 g)","·","Measured temperature rise (highest) of main contacts @ rated current (type test)","K","xxxxxxxxxx"]
[null,"2.20","3.1.4 f) & g)","·","Maximum allowable temperature of bolted or equivalent connections (refer to Table 3 of SANS 62271-1)","OC","xxxxxxxxxx"]
[null,"2.21","3.1.4 g)","·","Measured temperature rise (highest) of bolted or equiv connections @ rated current (type test)","K","xxxxxxxxxx"]
[null,"2.22","3.1.4 f) & g)","·","Maximum allowable temperature of terminals for the connection to external conductors (refer to Table 3 of SANS 62271-1)","OC","xxxxxxxxxx"]
[null,"2.23","3.1.4 g)","·","Measured temperature rise (highest) of terminals for the connection to external conductors @ rated current (type test)","K","xxxxxxxxxx"]
[null,"2.24","3.1.4","·","Contact resistance of the main circuit measured during temperature rise","µΩ","xxxxxxxxxx"]
[null,"2.25","3.1.4","·","Minimium contact resistance of the main circuit measured during temperature rise","µΩ","xxxxxxxxxx"]
[null,"2.26","3.1.4","·","Maximium contact resistance of the main circuit not to be exceeded when testing CB during maintenance/ repairs","µΩ","xxxxxxxxxx"]
[null,"2.27","3.1.5","·","Rated short-time withstand current (Ik)","kA",{"$f":"VLOOKUP($E$11,$M$589:$AP$608,9,FALSE)","v":40}]
[null,"2.28","3.1.6","·","Rated peak withstand current (Ip)","kA",{"$f":"VLOOKUP($E$11,$M$589:$AP$608,10,FALSE)","v":100}]
[null,"2.29","3.1.7","·","Rated duration of short circuit (tk)","s",3]
[null,"2.30","3.1.8","·","Rated d.c. supply voltage of closing and opening devices and of auxiliary and control circuits (Ua)","V",{"$f":"VLOOKUP($E$11,$M$589:$AP$608,30,FALSE)","v":110}]
[null,"2.31","3.1.8.1","·","Rated a.c. supply voltage of heaters and other a.c. auxiliary circuits (Ua)","V",230]
[null,"2.32","3.1.8.1","·","Rated supply frequency of closing and opening devices and of auxiliary and control circuits","Hz","d.c."]
[null,"2.33","3.1.8.1","·","Rated supply frequency of heaters and other a.c. auxiliary circuits","Hz",50]
[null,"2.34","3.1.9 a)","·","Rated short-circuit breaking current (ISC) of circuit-breaker","kA",{"$f":"VLOOKUP($E$11,$M$589:$AP$608,11,FALSE)","v":40}]
[null,"2.35",null,"·"," - a.c. component of short-circuit breaking current","kA","xxxxxxxxxx"]
[null,"2.36",null,"·"," - d.c. component of short-circuit breaking current"," %","xxxxxxxxxx"]
[null,"2.37","3.1.9 b)","·","Factor by which the 100 % symmetrical and asymmetrical single-phase rated short-circuit breaking current exceeds the three-phase rating ","pu",{"$f":"VLOOKUP($E$11,$M$589:$AZ$608,40,FALSE)","v":"xxxxxxxxxx"}]
[null,"2.38","3.1.19","·","Circuit-breaker class S1 or class S2",null,{"$f":"VLOOKUP($E$11,$M$589:$AP$608,26,FALSE)","v":"xxxxxxxxxx"}]
[null,"2.39","3.1.10 a)","·","First-pole-to-clear factor (kpp) for circuit-breaker",null,{"$f":"VLOOKUP($E$11,$M$589:$AP$608,12,FALSE)","v":"1,5"}]
[null,"2.40","3.1.10 b)","·","Standard values of TRV related to the rated short-circuit breaking current (SANS 62271-100)",null,{"$f":"VLOOKUP($E$11,$M$589:$AP$608,13,FALSE)","v":"SANS 62271-100 Table 4"}]
[null,"2.41","3.1.10 b)","·","Peak value of TRV (uc)","kA","xxxxxxxxxx"]
[null,"2.42","3.1.10 b)","·","Rate of rise of recovery voltage of TRV","kV/μs","xxxxxxxxxx"]
[null,"2.43","3.1.10 b)","·","Time delay (td) of TRV","μs","xxxxxxxxxx"]
[null,"2.44","3.1.10 b)","·","Amplitude factor (kaf) of TRV","p.u.","xxxxxxxxxx"]
[null,"2.45","3.1.10 b)","·","Peak value of the Initial TRV (ITRV)","kA","xxxxxxxxxx"]
[null,"2.46","3.1.10 b)","·","Rate of rise of recovery voltage of ITRV ","kV/μs","xxxxxxxxxx"]
[null,"2.47","3.1.11","·","Rated short-circuit making current of circuit-breaker","kA",{"$f":"VLOOKUP($E$11,$M$589:$AP$608,14,FALSE)","v":100}]
[null,"2.48","3.1.12 a) to d)","·","Rated operating sequence for circuit-breaker",null,{"$f":"VLOOKUP($E$11,$M$589:$AP$608,15,FALSE)","v":"O-0,3s-CO-3m-CO (all poles) "}]
[null,"2.49","3.1.12 d)","·","Minimum resting time following rated operating sequence","min","xxxxxxxxxx"]
[null,"2.50","3.1.13","·","Characteristics for short-line faults tested in accordance with the standard",null,"SANS 62271-100 4.105 & 6.109"]
[null,"2.51","3.1.14","·","Rated out-of-phase making current for circuit-breakers","kA",{"$f":"VLOOKUP($E$11,$M$589:$BA$608,41,FALSE)","v":"xxxxxxxxxx"}]
[null,"2.52","3.1.14","·","Rated out-of-phase breaking current for circuit-breakers","kA",{"$f":"VLOOKUP($E$11,$M$589:$BA$608,41,FALSE)","v":"xxxxxxxxxx"}]
[null,"2.53","3.1.15 c) & 3.1.19","·","Classification of circuit-breaker according to its restrike performance (line- and cable-charging breaking current)",null,{"$f":"VLOOKUP($E$11,$M$589:$AP$608,16,FALSE)","v":"Class C2"}]
[null,"2.54","3.1.15","·","Rated capacitive switching currents for circuit-breaker - line-charging breaking current","A",{"$f":"VLOOKUP($E$11,$M$589:$AP$608,17,FALSE)","v":50}]
[null,"2.55","3.1.15","·","Rated capacitive switching currents for circuit-breaker - cable-charging breaking current","A",{"$f":"VLOOKUP($E$11,$M$589:$AP$608,18,FALSE)","v":160}]
[null,"2.56","3.1.15 c) & 3.1.19","·","Classification of circuit-breaker according to its restrike performance (capacitor bank switching)",null,{"$f":"VLOOKUP($E$11,$M$589:$AP$608,19,FALSE)","v":"xxxxxxxxxx"}]
[null,"2.57","3.1.15","·","Rated capacitive switching currents for circuit-breaker - single capacitor bank breaking current","A",{"$f":"VLOOKUP($E$11,$M$589:$AP$608,20,FALSE)","v":"xxxxxxxxxx"}]
[null,"2.58","3.1.15","·","Rated capacitive switching currents for circuit-breaker - back-to-back capacitor bank breaking current","A",{"$f":"VLOOKUP($E$11,$M$589:$AP$608,21,FALSE)","v":"xxxxxxxxxx"}]
[null,"2.59","3.1.15","·","Rated capacitive switching currents for circuit-breaker - back-to-back capacitor bank inrush making current","kA",{"$f":"VLOOKUP($E$11,$M$589:$AP$608,22,FALSE)","v":"xxxxxxxxxx"}]
[null,"2.60","3.1.16",null,"Inductive load switching tests performed in accordance to SANS 62271-110 (for Ur ≥52kV)","Y/N","N/A"]
[null,"2.61","3.1.16","·","Chopping number of the circuit-breaker for inductive load switching (used to determine suppression peak overvoltage factor) and re-ignition behaviour used to configure electronic controller","λ","xxxxxxxxxx"]
[null,"2.62","3.1.17","·","Rated opening time for circuit-breaker","ms","xxxxxxxxxx"]
[null,"2.63","3.1.17","·","Rated break-time for circuit-breaker (max 60ms for Un ≤ 132kV;  max 50ms for Un >132kV","ms","shall not exceed 60"]
[null,"2.64","3.1.17","·","Rated closing time for circuit-breaker","ms","xxxxxxxxxx"]
[null,"2.65","3.1.17","·","Rated open-close time for circuit-breaker","ms","xxxxxxxxxx"]
[null,"2.66","3.1.17","·","Rated reclosing time for circuit-breaker","ms","xxxxxxxxxx"]
[null,"2.67","3.1.17","·","Rated close-open time for circuit-breaker","ms","xxxxxxxxxx"]
[null,"2.68","3.1.17","·","Rated pre-insertion time for circuit-breaker with pre-insertion resistor","ms","xxxxxxxxxx"]
[null,"2.69","3.1.18 & 3.1.19","·","Circuit-breaker mechanical endurance class",null,{"$f":"VLOOKUP($E$11,$M$589:$AP$608,23,FALSE)","v":"Class M2"}]
[null,"2.70",null,"·","Number of mechanical operations for circuit-breaker",null,{"$f":"VLOOKUP($E$11,$M$589:$AP$608,24,FALSE)","v":10000}]
[null,"2.71","3.1.19","·","Classification of circuit-breakers as a function of electrical endurance (Class E1 or Class E2)",null,{"$f":"VLOOKUP($E$11,$M$589:$AP$608,25,FALSE)","v":"Yes"}]
[]
[null,3,"3.2.1","Service conditions"]
[null,3.1,"3.2.1 a)","·","Location (indoors/outdoors)",null,"Outdoors"]
[null,"3.2","3.2.1 a)","·","Ambient air temperature range","°C","-10 to +40"]
[null,"3.3","3.2.1 a)","·","Solar radiation","W/m2",1100]
[null,"3.4","3.2.1 a)","·","Altitude (amsl)","m",1800]
[null,"3.5","3.2.1 a)","·","Class of pollution (SANS 60815-1:2009) ",null,{"$f":"VLOOKUP($E$11,$M$589:$BB$608,42,FALSE)","v":"Very heavy ('e')"}]
[null,"3.6","3.2.1 a)","·","Average humidity","%",95]
[null,"3.7","3.2.5 b)","·","Wind speed (velocity)","m/s",34]
[null,"3.8","3.2.1 a)","·","Condensation and precipitations",null,"Yes"]
[null,"3.9","3.2.1 a)","·","Seismic activity","g","0,3"]
[]
[null,4,"3.2.2","General"]
[null,"4.1","3.2.2 a)","·","Circuit-breaker compliant to SANS 62271-100",null,"Yes"]
[null,"4.2","3.2.2 b)","·","Circuit-breaker design (live-tank / dead-tank)",null,{"$f":"VLOOKUP($E$11,$M$589:$BC$608,43,FALSE)","v":"Live-tank"}]
[null,"4.3",null,"·","Circuit-breaker manufacturer",null,"xxxxxxxxxx"]
[null,"4.4",null,"·","Circuit-breaker country of origin",null,"xxxxxxxxxx"]
[null,"4.5",null,"·","Circuit-breaker model/type designation",null,"xxxxxxxxxx"]
[null,"4.6","3.2.23.1 ","·","Circuit-breaker total mass","kg","xxxxxxxxxx"]
[null,"4.7","3.2.2 c)","·","CTs required",null,{"$f":"VLOOKUP($E$11,$M$589:$BD$608,44,FALSE)","v":"No"}]
[null,"4.8",null,null,"- CT manufacturer",null,{"$f":"IF($G$110=\"Yes\",\"xxxxxxxxxx\",\"N/A\")","v":"N/A"}]
[null,"4.9",null,null,"- CT country of origin",null,{"$f":"IF($G$110=\"Yes\",\"xxxxxxxxxx\",\"N/A\")","v":"N/A"}]
[null,"4.10","3.2.2 d","·","Support structure design",null,{"$f":"VLOOKUP($E$11,$M$589:$BE$608,45,FALSE)","v":"2 column support with common base frame"}]
[null,"4.11","3.2.2 d)",null,"- Steel support structure to be supplied with circuit-breaker","Y/N",{"$f":"VLOOKUP($E$11,$M$589:$BF$608,46,FALSE)","v":"No"}]
[null,"4.12","3.2.2 e)",null,"- Circuit-breaker pole operation",null,{"$f":"VLOOKUP($E$11,$M$589:$BI$608,31,FALSE)","v":"3-pole operated (3P)"}]
[null,"4.13","3.2.2 e)",null,"- Stored energy operation for circuit-breaker mechanism",null,"Yes"]
[null,"4.14","3.2.2 e)",null,"- Energy storage device",null,"Spring"]
[null,"4.15",null,null,"- Operating drive mechanism country of origin ",null,"xxxxxxxxxx"]
[null,"4.16",null,null,"- Operating drive mechanism model/type designation",null,"xxxxxxxxxx"]
[null,"4.17","3.2.2 e)",null,"NOTE:  When a feeder circuit-breaker is in the closed position and the spring has been charged, it shall be able to “TRIP-CLOSE-TRIP” before the spring needs to be recharged",null,"Yes"]
[null,"4.18","3.2.2 e)",null,"- Manual and motorised spring charging",null,"Yes"]
[null,"4.19","3.2.2 e)",null,"- Manual and electric energy release",null,"Yes"]
[null,"4.20","3.2.2 e)",null,"- Mechanical energy stored in charged spring","kJ","xxxxxxxxxx"]
[null,"4.21","3.2.2 e)",null,"- Mechanical device provided to prevent over-charging of the closing spring for manual and motor charging",null,"Yes"]
[null,"4.22","3.2.2 e)",null,"- Safe conditions produced in the case of failure to latch",null,"Yes"]
[null,"4.23","3.2.2 f)",null,"- Circuit-breaker insulation and/or extinguishing medium",null,{"$f":"VLOOKUP($E$11,$M$589:$BG$608,47,FALSE)","v":"SF6/Enviro-friendly"}]
[null,"4.24",null,null,"- Mass of insulation and/or extinguishing medium","kg","xxxxxxxxxx"]
[null,"4.25","3.2.2 f)",null,"- Type of interrupter design (puffer, self-blast, etc.) ",null,"xxxxxxxxxx"]
[null,"4.26","3.2.2 f)",null,"- Configuration of moving contacts (single, double or triple motion) (Subject to Eskom approval)",null,"xxxxxxxxxx"]
[null,"4.27","3.2.2 g)",null,"- Minimim expected life-span of circuit-breaker","years","> 40"]
[null,"4.28",null,null,"- minimal maintenance accordance to electrical and mechanical endurance","Y/N","Yes"]
[]
[null,5,"3.2.3","Construction requirements"]
[null,null,"3.2.3","·","Design and layout of the circuit-breaker :"]
[null,"5.1","3.2.3 a)",null,"  - standardised circuit-breaker elements to maximise interchageability","Y/N","Yes"]
[null,"5.2","3.2.3 b)",null,"  - modular, pre-assembled elements shall be designed to facilitate handling and installation","Y/N","Yes"]
[null,"5.3","3.2.3 c)",null,"  - designed to facilitate ease of construction and maintenance ","Y/N","Yes"]
[null,"5.4","3.2.3 d)",null,"  - Filter material housing located to provide easy access during maintenance","Y/N","Yes"]
[]
[null,"6","3.2.4","Circuit-breaker operating mechanism enclosure requirements"]
[null,6.1,"3.2.4 a)","·","Operating mechanisms, local control facilities and all parts requiring lubrication protected by weatherproof enclosures","Y/N","Yes"]
[null,"6.2","3.2.4 a)",null,"  - degree of protection for enclosures containing exposed bearings, auxiliary switches, motors and other electrical devices","IP","IP 55"]
[null,"6.3","3.2.4 a)",null,"  - degree of protection for all open areas in the circuit-breaker common base frame as well as externally mounted indicating devices (where applicable)","IP","IP 2X"]
[null,"6.4","3.2.4 a)",null,"  - degree of protection for all other enclosures","IP","IP 54"]
[null,"6.5","3.2.4 b) & 3.2.6","·","Operating mechanism enclosure, handles and fixings material",null,"3CR12 stainless steel/ Painted aluminium"]
[null,"6.6","3.2.4 b) & 3.2.6","·","Operating mechanism enclosure corrosion protection in accordance with 3.2.6 of DSP 34-1658","Y/N","Yes"]
[null,"6.7","3.2.4 c)","·","Operating mechanism enclosures arranged to facilitate easy access from all sides ","Y/N","Yes"]
[null,"6.8","3.2.4 c)",null,"  - all fastenings compliant with 240-56063756 and subject to Eskom approval","Y/N","Yes"]
[null,"6.9","3.2.4 d)","·","Circuit-breaker designed for operation from the front of the operating mechanism enclosure","Y/N","Yes"]
[null,"6.10","3.2.4 e)","·","Access to the operating mechanism controls, terminals strips etc. provided through hinged front access door ","Y/N","Yes"]
[null,"6.11","3.2.4 f) & 3.2.23.1 b) iii.","·","Maximum height to top of mechanism allows servicing from ground (Un ≤ 132kV) or viewing indications and reading  from ground (Un >132kV) - it shall be shown clearly on the outline General Arrangement (GA) drawing","Y/N","Yes"]
[null,"6.12","3.2.4 g)","·","Front access door secured with a heavy-duty locking mechanism","Y/N","Yes"]
[null,"6.13","3.2.4 h)","·","Padlocking facility shackle diameter","mm",6]
[null,"6.14","3.2.4 i)","·","Front access door equipped with travel stop","Y/N","Yes"]
[null,"6.15","3.2.4 j)","·","Rigid, corrosion resistant documentation pocket provided on inside of front access door, securely attached no protrusion through door","Y/N","Yes"]
[null,"6.16","3.2.4 k)","·","Facilites provided for securing operating tools on inside of front access door","Y/N","Yes"]
[null,"6.17","3.2.4 l)","·","Earthing of operating mechanism enclosure in accordance with 240-56063756","mm","Yes"]
[null,"6.18","3.2.4 m) & 3.2.21 c)","·","Provision for bottom/ below entry of all control cabling into operating mechanism enclosure","Y/N","Yes"]
[null,"6.19","3.2.4 n)","·","Metallic cable racking provided for inter-pole cabling?","Y/N","No"]
[null,"6.20","3.2.4 o)","·","Upper surfaces of enclosure shaped/sloped to prevent the accumulation of water","Y/N","Yes"]
[null,"6.21","3.2.4 p)","·","Gasket material offered (O-rings)",null,"Neoprene rubber/ Nitrile rubber/ Cork"]
[null,"6.22","3.2.4 q)","·","Gauze-covered drain hole provided (> 25 mm) ","Y/N","Yes"]
[null,"6.23","3.2.4 r)","·","Enclosure lifting eyes provided",null,"Top"]
[null,"6.24","3.2.4 s)","·","Enclosure colour in accordance with SANS 1019",null,"Light grey (G29)"]
[null,"6.25","3.2.4 t)","·","Mechanical trip facility located inside mechanism enclosure (clearly marked with warning labels)","Y/N","Yes"]
[]
[null,"7","3.2.5","Circuit-breaker supporting structure"]
[null,null,"3.2.5 a) & 3.2.23.1","·","Mechanical loads (in accordance to SANS 62271-100 clause 6.101.6) and parameters relating to the design of the circuit-breaker support structure and foundation"]
[null,"7.1","3.2.5 a)","·","  - “static” dead weight of the circuit-breaker ","N","xxxxxxxxxx"]
[null,"7.2",null,"·","  - rated “static” horizontal terminal force (longitudinal)  FthA of the circuit-breaker due to connected conductors","N",{"v":1000,"d":"1,000"}]
[null,"7.3",null,"·","  - rated “static” vertical terminal force (upward & downward) Ftv of the  circuit-breaker due to connected conductors","N",750]
[null,"7.4","3.2.5 a)","·","  - rated “static” terminal load horizontal force FshA of the circuit-breaker due to connected conductors","N","xxxxxxxxxx"]
[null,"7.5",null,null,"  - rated “static” horizontal terminal force (transversal) FthB of the circuit-breaker due to connected conductors","N",750]
[null,"7.6","3.2.5 a)","·","  - rated “static” terminal load horizontal force FshB of the circuit-breaker due to connected conductors","N","xxxxxxxxxx"]
[null,"7.7","3.2.5 a)","·","  - rated “static” terminal load vertical force Fsv of the circuit-breaker due to connected conductors","N","xxxxxxxxxx"]
[null,"7.8",null,"·"," - horizontal force due to wind pressure on ice coated circuit-breaker Fwh","N","xxxxxxxxxx"]
[null,"7.9","3.2.5 a)","·","  - “dynamic” horizontal force exerted during operation on the foundation","N","xxxxxxxxxx"]
[null,"7.10","3.2.5 a)","·","  - “dynamic” vertical force exerted during operation on the foundation ","N","xxxxxxxxxx"]
[null,"7.11","3.2.5 a)","·","  - “dynamic” moment (torque) exerted during operation about the foundation ","Nm","xxxxxxxxxx"]
[null,"7.12","3.2.5 a)","·","  -  “dynamic” horizontal force exerted between circuit-breaker poles (centre phase interrupter chamber) during a rated (terminal fault) short-circuit ","N","xxxxxxxxxx"]
[null,"7.13",null,"·","Rated static terminal load (resultant force) - Fsr1","N","xxxxxxxxxx"]
[null,"7.14",null,"·","Rated static terminal load (resultant force) - Fsr2","N","xxxxxxxxxx"]
[null,"7.15",null,"·","Rated static terminal load (resultant force) - Fsr3","N","xxxxxxxxxx"]
[null,"7.16",null,"·","Rated static terminal load (resultant force) - Fsr4","N","xxxxxxxxxx"]
[null,"7.17","3.2.5 a)","·","  - wind force (load) exerted on the circuit-breaker due to the wind velocity of 34 m/s ","N","xxxxxxxxxx"]
[null,"7.18","3.2.5 a)","·","  - maximum torque required for the foundation holding down bolt nuts ","Nm","xxxxxxxxxx"]
[null,"7.19",null,"·"," - centre of gravity of the circuit-breaker",null,"xxxxxxxxxx"]
[null,"7.20","3.2.5 b)","·","Circuit-breaker steel support structure to be designed by manufacturer","Y/N",{"$f":"VLOOKUP($E$11,$M$589:$BZ$608,51,FALSE)","v":"No"}]
[null,"7.21","3.2.5 b)","·","Circuit-breaker concrete foundation to be designed by manufacturer","Y/N",{"$f":"VLOOKUP($E$11,$M$589:$BZ$608,52,FALSE)","v":"No"}]
[null,"7.22","3.2.5 c)","·","Common base frame supplied with circuit-breaker \n(Un ≤ 132 kV)","Y / N / N/A",{"$f":"VLOOKUP($E$11,$M$589:$BZ$608,50,FALSE)","v":"Yes"}]
[null,"7.23","3.2.5 c) & d)","·","Circuit-breaker designed to interface with the standard Eskom steel support structure","Y/N",{"$f":"VLOOKUP($E$11,$M$589:$BZ$608,53,FALSE)","v":"Yes"}]
[null,"7.24","3.2.5 c) & d)","·","Circuit-breaker support structure designed to interface with the standard Eskom concrete foundation","Y/N",{"$f":"VLOOKUP($E$11,$M$589:$BZ$608,54,FALSE)","v":"Yes"}]
[null,"7.25","3.2.5 c) & d)","·","Circuit-breaker steel support structure drawing (240-56063756 Table 6)",null,{"$f":"VLOOKUP($E$11,$M$589:$BZ$608,48,FALSE)","v":"D-DT-5200 Sh 2"}]
[null,"7.26","3.2.5 c) & d)","·","Circuit-breaker concrete foundation drawing (240-56063756 Table 6)",null,{"$f":"VLOOKUP($E$11,$M$589:$BZ$608,49,FALSE)","v":"D-DT-5200 Sh 1"}]
[null,"7.27","3.2.5 e)","·"," Rated static terminal load according to SANS 62271-100 Clause 6.101.6","Y/N",{"$f":"VLOOKUP($E$11,$M$589:$DA$608,69,FALSE)","v":"No"}]
[null,"7.28",null,"·"," - rated static terminal load","N","xxxxxxxxxx"]
[]
[null,"8","3.2.6","Corrosion protection and lubrication"]
[null,"8.1","3.2.6 a)","·","Corrosion specification",null,"DSP 34-1658/ 240-75655504"]
[null,"8.2","3.2.6 a)","·","Corrosivity rating of environment",null,"\"high\" to \"very high\"","xxxxxxxxxx"]
[null,"8.3","3.2.6 a)",null,"Corrosivity rating environment - ‘C4’ and ‘C5’ (i.e. marine)",null,"C5 (marine)","xxxxxxxxxx"]
[null,"8.4","3.2.6 b)","·","Minimum detailed specification number for exposed metal:-","DS","DS-11"]
[null,"8.5",null,null," - 3CR12, where applicable","DS","DS-11"]
[null,"8.6",null,null," - Stainless steel, where applicable","DS","DS-18"]
[null,"8.7",null,null," - Hot dip galvanised steel, where applicable","DS","DS-13"]
[null,"8.8","3.2.6 c)",null,"- Equivalent detailed  specification number offered for operating mechanism enclosures","DS","xxxxxxxxxx"]
[null,"8.9","3.2.6 c)",null,"- Equivalent detailed specification number offered for all bolts, nuts and washers  ","DS","xxxxxxxxxx"]
[null,"8.10","3.2.6 c)",null,"- Equivalent detailed specification number offered for all structural steel","DS","xxxxxxxxxx"]
[null,"8.11","3.2.6 c)",null,"- Equivalent detailed specification number offered for all other exposed metal (excluding main terminals)","DS","xxxxxxxxxx"]
[null,"8.12","3.2.6 d)","·","Details of lubricants provided with tender documentation","Y/N","Yes"]
[null,"8.13","3.2.6 e)","·","Details of flange arrangements, treatments to prevent flange corrosion provided with tender",null,"Yes"]
[null,"8.14","3.2.6 c) & f)","·","Material and Corrosion Protection Information Table 7 on the 240-56063756 standard completed","Y/N","Yes"]
[null,"9","3.2.6 f)","Circuit-breaker operating mechanism enclosure heaters"]
[null,"9.1","3.2.6 f) i. ","·","Heater size offered","Watt","xxxxxxxxxx"]
[null,"9.2","3.2.6 f) ii. ","·","Heater maintains dew-point higher than ambient temperature, constantly circulates air to all parts of enclosure","Y/N","Yes"]
[null,"9.3","3.2.6 f) iii. ",null,"Electrical supply for heater shall be single phase 230V a.c.","Y/N","Yes"]
[null,"9.4","3.2.6 f) iv. ","·","Heater control circuit specification (240-56030489 and Eskom standard wiring drawing)",null,{"$f":"VLOOKUP($E$11,$M$589:$DC$608,70,FALSE)","v":"240-56030489 and D-DT-5407"}]
[]
[null,"10","3.2.7","Terminal requirements"]
[null,"10.1","3.2.7 a)","·","HV main terminal type",null,{"$f":"VLOOKUP($E$11,$M$589:$BZ$608,61,FALSE)","v":"Flat pad"}]
[null,"10.2","3.2.7 a)","·","Flat pad details:"]
[null,"10.3","3.2.7 a)",null,"- Number of holes and pitch","mm",{"$f":"IF($G$220=\"Stem\",\"N/A\",(VLOOKUP($E$11,$M$589:$DC$608,71,FALSE)))","v":"8 x 50"}]
[null,"10.4","3.2.7 a)",null,"- Thickness (min)","mm",{"$f":"IF($G$220=\"Stem\",\"N/A\",(VLOOKUP($E$11,$M$589:$DC$608,72,FALSE)))","v":20}]
[null,"10.5","3.2.7 a)",null,"- Material",null,{"$f":"IF($G$220=\"Stem\",\"N/A\",\"Aluminium\")","v":"Aluminium"}]
[null,"10.6","3.2.7 a)","·","Main HV terminals shall be in accordance with SANS 62271-301 ","Y/N","Yes"]
[null,"10.7","3.2.7 a)","·","HV main terminals removable without interfering with operation of circuit-breaker","Y/N","Yes"]
[null,"10.8","3.2.7 b) & 3.2.23.1","·","Details of main HV terminals shown on the GA","Y/N","Yes"]
[null,"10.9","3.2.7 b)",null,"Earthing terminals"]
[null,"10.10","3.2.7 b) & 3.2.23.1","·","Details of earthing terminals shown on the GA","Y/N","Yes"]
[null,"10.11","3.2.7 b)",null,"- Circuit-breaker earthed to main substation grid through support structure and foundation holding down bolts","Y/N","Yes"]
[null,"10.12","3.2.7 b)",null,"- Earthing of circuit-breaker via steel support structure and foundation holding down bolts","Y/N",{"$f":"VLOOKUP($E$11,$M$589:$BZ$608,55,FALSE)","v":"Yes"}]
[null,"10.13","3.2.7 b)",null,"- Additional conductor provided between the circuit-breaker and the support structure","Y/N",{"$f":"VLOOKUP($E$11,$M$589:$BZ$608,56,FALSE)","v":"Yes"}]
[null,"10.14","3.2.7 b)",null,"- Material (preferably not exposed copper or aluminium)","Cu/ Al",{"$f":"VLOOKUP($E$11,$M$589:$BZ$608,56,FALSE)","v":"Yes"}]
[null,"10.15","3.2.7 b)",null,"- Additional Ø18 mm hole provided at bottom of steel support structure (if part of supply)",null,{"$f":"IF($G$114=\"Yes\",\"Yes\",\"N/A\")","v":"N/A"}]
[]
[null,"11","3.2.8","Safety clearances and personnel safety"]
[null,"11.1","3.2.8 a)","·","Live parts isolated by means of elevation","Y/N","Yes"]
[null,"11.2","3.2.8 b)",null,"Safe working procedure compliance to OHS Act provided","Y/N","Yes"]
[null,"11.3","3.2.8 b)","·","Minimum electrical working clearance (240-56063756 Table 8)","mm",{"$f":"VLOOKUP($E$11,$M$589:$BZ$608,57,FALSE)","v":3950}]
[null,"11.4","3.2.8 c)","·","Distance from lowest part of any high-voltage insulation above ground ","mm",2500]
[null,"11.5","3.2.8 d) & e)","·","Type of pressure relief devices provided",null,"xxxxxxxxxx"]
[null,"11.6","3.2.8 e)","·","Circuit-breaker of dead-tank type - internal faults (internal arc) and pressure reief devices in ccordance with SANS 62271-203, where applicable","Y/N","Yes"]
[null,"11.7","3.2.8 e)",null," - time for an arc due to internal fault (internal arc) up to short-circuit current cause no external effects","mm","xxxxxxxxxx"]
[null,"11.8","3.2.8 e)",null," - details provided with tender documentation","Y/N","Yes"]
[]
[null,"12","3.2.9","Insulation requirements"]
[null,null,"3.2.9 a)","·","Hollow insulators"]
[null,"12.1","3.2.9 a)",null,"- Insulator material",null,{"$f":"VLOOKUP($E$11,$M$589:$BZ$608,58,FALSE)","v":"Ceramic (porcelain)/ Silicone rubber composite"}]
[null,"12.2","3.2.9 a)",null,"- Insulator manufacturer",null,"xxxxxxxxxx"]
[null,"12.3",null,null," - Insulator country of origin",null,"xxxxxxxxxx"]
[null,"12.4","3.2.9 a)",null,"- Ceramic (porcelain) type insulators in accordance with SANS 62155 and SANS 60815-2, where applicable","Y/N","Yes"]
[null,"12.5","3.2.9 a)",null,"- Silicone rubber composite type insulators in accordance with SANS 61462 and SANS 60815-3, where applicable","Y/N","Yes"]
[null,"12.6","3.2.9 a)","·","- Circuit-breaker tested at KIPTS or Any equivalent Insulator Pollution test performed",null,"xxxxxxxxxx"]
[null,"12.7","3.2.9 a)","·","Test certificate & Test report for Insulator Pollution testing submitted with this Tender Documentation","Y/N","Yes"]
[null,null,"3.2.9 b)","·","Minimum insulation creepage distances (SANS 60815-1)"]
[null,"12.8","3.2.9 b)",null,"- Minimum external unified specific creepage distance (USCD)","mm/kV",{"$f":"VLOOKUP($E$11,$M$589:$BZ$608,34,FALSE)","v":"53,7"}]
[null,"12.9","3.2.9 b)",null,"- Minimum external specific creepage distance (SCD)","mm/kV",31]
[null,null,"3.2.9 c)","·","Clearances in air"]
[null,"12.10","3.2.9 c)",null,"- Phase to phase clearance in air","mm",{"$f":"VLOOKUP($E$11,$M$589:$BZ$608,62,FALSE)","v":"xxxxxxxxxx"}]
[null,"12.11","3.2.9 c)",null,"- Phase to earth clearance in air","mm","xxxxxxxxxx"]
[]
[null,"13","3.2.10","Position / status indication"]
[{"$nulls":3},"·","Circuit-breaker position indication"]
[null,13.1,"3.2.10 a) & b)",null,"- Position indication to SANS 62271-100 clause 5.12","Y/N","Yes"]
[null,13.2,"3.2.10 a) & b)",null,"- Position indication visible with operating mechanism enclosure front access door closed","Y/N","Yes"]
[null,13.3,"3.2.10 b)",null,"- Closed position: “I” in white lettering on a red background","Y/N","Yes"]
[null,13.4,"3.2.10 b)",null,"- Open position: “O” in white lettering on a green background","Y/N","Yes"]
[null,"13.5","3.2.10 c)",null,"- Lettering (symbol) size (min)","mm",30]
[null,null,"3.2.10 d)","·","Closing spring status indication"]
[null,"13.6","3.2.10 d)",null,"- Status indicated by \"SPRING CHARGED\" and \"SPRING DISCHARGED\"","Y/N","Yes"]
[null,"13.7","3.2.10 d)",null,"- Lettering size (min)","mm",15]
[null,"13.8","3.2.10 e)","·","Type of non-resettable circuit-breaker operation counter offered",null,"Mechanical / electrical"]
[null,"13.9","3.2.10 f)","·","Pressure gauge provided (compensated for temperature and responding to insulation and/or extinguishing medium density) - where applicable","Y/N","Yes"]
[null,"13.10","3.2.10 f)","·","Pressure gauge sheltered from the elements - where applicable","Y/N","Yes"]
[null,"13.11","3.2.10 g)","·","All indicating devices clearly visible and legible by persons with norml vision standing at ground level","Y/N","Yes"]
[]
[null,"14","3.2.11","Labels"]
[null,null,"3.2.11 a)","·","Operating labels"]
[null,14.1,"3.2.11 a)",null,"- Instructions for tripping (“TO TRIP”) and closing (“TO CLOSE”) the circuit-breaker","Y/N",{"$f":"IF($G$90=\"N/A\",\"N/A\",\"Yes\")","v":"Yes"}]
[null,14.2,"3.2.11 a)",null,"- Instructions for charging closing springs (“TO CHARGE SPRING”)","Y/N",{"$f":"IF($G$90=\"N/A\",\"N/A\",\"Yes\")","v":"Yes"}]
[null,14.3,"3.2.11 b)","·","Actuator(s) for local opening and closing of the circuit-breaker labelled in accordance with 240-56063756.            NOTE The trip/close actuator colour differ from IEC 60073","Y/N","Yes"]
[null,"14.4","3.2.11 c)","·","Appropriate warning label for performing manual operation without adequate amount of SF6 inside DCB","Y/N","Yes"]
[null,"14.5","3.2.11 c) Note","·","Appropriate warning label for mechanical trip facility","Y/N","Yes"]
[null,"14.6","3.2.11 d)","·","Appropriate warning labels for interval between repeated CO's at testing","Y/N","Yes"]
[null,null,"3.2.11 e)","·","Function labels"]
[null,"14.7","3.2.11 e)",null,"- Function labels provided to identify all LV (secondary) control equipment","Y/N","Yes"]
[null,"14.8","3.2.11 e)",null,"- Function label text height (min) - text in bleck letters on white background","mm",5]
[null,"14.9","3.2.11 f)","·","Labels manufactured to 240-56062515, using inherently corrosion-resistant rivets or self-tapping screws","Y/N","Yes"]
[]
[]
[null,"15","3.2.12","Requirements for SF6 gas (where applicable)                                                                 NOTE The Supplier shall provide details of other environmental friendly insulation and/or extinguishing medium, if applicable"]
[null,15.1,"3.2.12 a)","·","SF6 in accordance with IEC 60376","Y/N","Yes"]
[null,15.2,"3.2.12 c)","·","The maximum SF6 gas leakage rate (NB: provide details if other enviro-friendly insulation and/or extinguishing medium)","%","0,5 / year"]
[null,null,"3.2.12 d)","·","SF6 gas purity"]
[null,15.3,null,null,"- SF6 content","%",">98"]
[null,15.4,null,"·","- Dew point at rated filling pressure (max) (at +20°C ) at commissioning","°C",">-10"]
[{"$nulls":4},"- Moisture content (volume concentration of moisture expressed in microliters per litre) at commissioning","μL/L","xxxxxxxxxx"]
[{"$nulls":4},"- Dew point at rated filling pressure (max) (at +20°C ) limit when in service","°C",">-5"]
[{"$nulls":4},"- Moisture content (volume concentration of moisture expressed in microliters per litre)  limit when in service","μL/L","xxxxxxxxxx"]
[{"$nulls":3},"·","- SF6 gas contamination (by-products) by volume, limit when in service","ppmv","xxxxxxxxxx"]
[null,null,"3.2.12 e)","·","SF6 gas-filled circuit-breaker filling and pressure monitoring (NB: provide details if other enviro-friendly insulation and/or extinguishing medium)"]
[null,15.5,null,null,"- central gas/filling evacuation point connection provided",null,{"$f":"VLOOKUP($E$11,$M$589:$BZ$608,59,FALSE)","v":"DILO DN8"}]
[null,15.6,null,null,"- height of gas filling/evacuation point above ground (max)","mm","<2400"]
[null,"15.7",null,null,"- gas filling point and the gas pressure gauge separated ","Y/N","Yes"]
[null,"15.8",null,null,"- dial type gauge responding to Density and indicating pressure compensated for temperature provided","Y/N","Yes"]
[null,"15.9",null,null,"- Density monitoring device (density switch) contact requirements",null,{"$f":"VLOOKUP($E$11,$M$589:$DC$608,73,FALSE)","v":"D-DT-5407"}]
[null,"15.10",null,null,"- Density monitoring device suitable for outdoor operation","Y/N","Yes"]
[null,"15.11",null,null,"- method/system used to prevent corrosion of moving parts and contacts",null,"xxxxxxxxxx"]
[null,"15.12",null,null,"- Density monitoring device shielded against direct sunshine","Y/N","Yes"]
[null,"15.13",null,null,"- non-return valves fitted on all DN8 (for Un≤132kV) / DN20 ( Un≥220kV) fittings and pipe work to allow removal of poles and/or density monitoring device while maintaining system pressure","Y/N","Yes"]
[null,"15.14",null,null,"- details of arrangement offered supplied with tender documentation","Y/N","Yes"]
[null,"15.15",null,null,"- pipe work material",null,"Stainless steel/ factory painted Cu"]
[null,"15.16",null,null,"- separate/common filling/evacuating and density monitoring point per pole provided (i.e. 3P or 1P design)",null,{"$f":"IF($G$20<146,\"Common\",\"Separate\")","v":"Common"}]
[null,"15.17",null,null,"- type of electrical connections to the density-monitoring device ",null,"xxxxxxxxxx"]
[null,"15.18",null,null," - electrical connections to the density monitoring device shall preferably not be the plug-in type","Y/N","Yes"]
[null,"15.19",null,null," - density-monitoring devices with locking facilities  (preferred)","Y/N","Yes"]
[null,"15.20",null,null,"- cabling protected using compression glands/ rubber grommets","Y/N","Yes"]
[null,"15.21",null,null,"- details of all pressure devices provided with tender documentation","Y/N","Yes"]
[null,"15.22",null,null,"- Density monitoring device electrical interlocks and alarm requirements",null,{"$f":"VLOOKUP($E$11,$M$589:$DC$608,70,FALSE)","v":"240-56030489 and D-DT-5407"}]
[null,"15.23","3.2.12 f)","·","Management of SF6 gas in accordance with NRS 087","Y/N","Yes"]
[]
[null,"16","3.2.13","Current Transformers"]
[null,16.1,"3.2.13 a)","·","Type of CT design (type designation)",null,{"$f":"VLOOKUP($E$11,$M$589:$BZ$608,63,FALSE)","v":"N/A"}]
[null,16.2,null,null,"- CT outline GA, rating plate drawing and wiring schematic submitted (where applicable)","Y/N","N/A"]
[null,16.3,null,null,"- CT type tests submitted  (where applicable)","Y/N","N/A"]
[null,"16.4","3.2.13 a)","·","CT specification",null,{"$f":"VLOOKUP($E$11,$M$589:$BZ$608,64,FALSE)","v":"N/A"}]
[null,16.5,"3.2.13 b)","·","Number of cores",null,{"$f":"VLOOKUP($E$11,$M$589:$BZ$608,65,FALSE)","v":"N/A"}]
[null,16.6,"3.2.13 c)","·","CT specification (drawing number)",null,{"$f":"IF($G$110=\"No\",\"N/A\",(VLOOKUP($E$11,$M$589:$DC$608,73,FALSE)))","v":"N/A"}]
[null,16.7,"3.2.13 e)","·","Rated short-time withstand current - magnitude","kA",{"$f":"IF($G$110=\"Yes\",G46,\"N/A\")","v":"N/A"}]
[{"$nulls":4},"Rated short-time withstand current - duration","s",{"$f":"IF($G$110=\"Yes\",G48,\"N/A\")","v":"N/A"}]
[null,"16.8","3.2.13 e)","·","Position relative to the circuit-breaker",null,{"$f":"VLOOKUP($E$11,$M$589:$BZ$608,66,FALSE)","v":"N/A"}]
[null,"16.9","3.2.13 c)","·","Terminal numbering and wiring interface (drawing number)",null,{"$f":"IF($G$110=\"Yes\",(VLOOKUP($E$11,$M$589:$DC$608,73,FALSE)),\"N/A\")","v":"N/A"}]
[null,null,"3.2.13 e)","·","Protection current transformers:"]
[null,"16.10",null,null,"a) cores",null,{"$f":"VLOOKUP($E$11,$M$589:$DA$608,67,FALSE)","v":"N/A"}]
[null,"16.11",null,null,"b) class",null,{"$f":"VLOOKUP($E$11,$M$589:$BW$608,32,FALSE)","v":"N/A"}]
[null,"16.12",null,null,"c) ratios","A",{"$f":"VLOOKUP($E$11,$M$589:$BW$608,36,FALSE)","v":"N/A"}]
[null,null,"3.2.13 e)","·","Bus-zone current transformers:"]
[null,"16.13",null,null,"a) cores",null,{"$f":"VLOOKUP($E$11,$M$589:$DC$608,74,FALSE)","v":"N/A"}]
[null,"16.14",null,null,"b) class",null,{"$f":"VLOOKUP($E$11,$M$589:$BW$608,33,FALSE)","v":"N/A"}]
[null,"16.15",null,null,"c) ratios","A",{"$f":"VLOOKUP($E$11,$M$589:$BW$608,35,FALSE)","v":"N/A"}]
[null,null,"3.2.13 e)","·","Measurement current transformers:"]
[null,"16.16",null,null,"a) cores",null,{"$f":"VLOOKUP($E$11,$M$589:$DA$608,68,FALSE)","v":"N/A"}]
[null,"16.17",null,null,"b) class",null,{"$f":"VLOOKUP($E$11,$M$589:$BW$608,38,FALSE)","v":"N/A"}]
[null,"16.18",null,null,"c) burden","VA",{"$f":"VLOOKUP($E$11,$M$589:$BW$608,39,FALSE)","v":"N/A"}]
[null,"16.19",null,null,"d) ratios","A",{"$f":"VLOOKUP($E$11,$M$589:$BW$608,37,FALSE)","v":"N/A"}]
[null,"16.20","3.2.13 e)","·","Details of the calculated magnetising curves provided on a log-scale","Y/N","N/A"]
[null,"16.21",null,"·","Details of protection against mechanical damage and fixing method provided","Y/N","N/A"]
[null,"16.22","3.2.13 d)","·","Ring-type CTs interchangeable without dismantling the bushing, this method provided with tender documentation",null,{"$f":"IF($G$323=\"Ring-type\",\"Yes\",\"N/A\")","v":"N/A"}]
[]
[null,"17","3.2.14","Switching surge control (where applicable)"]
[null,"17.1","3.2.14 a)","·","Pre-insertion closing resistor offered","Y/N","xxxxxxxxxx"]
[null,"17.2","3.2.14 a)","·","Pre-insertion closing resistor resistance","Ω","xxxxxxxxxx"]
[null,"17.3","3.2.14 b)","·","Electronic controller offered for switching of cap banks, reactor banks and transformers (Provide Manufacturer & Type, IEC 61850 protocol compliancy)","Y/N","N/A"]
[null,"17.4","3.2.14 b)","·","Metal oxide surge arresters in parallel with CB interrupters offered","Y/N","xxxxxxxxxx"]
[]
[null,"18","3.2.15","Grading capacitors (where applicable)"]
[null,"18.1","3.2.15 a)","·","Grading capacitors offered","Y/N","xxxxxxxxxx"]
[null,"18.2",null,null," - Grading capacitors insulation material e.g. oil/paper","Y/N","xxxxxxxxxx"]
[null,"18.3",null,null," - Grading capacitors manufacturer","Y/N","xxxxxxxxxx"]
[null,"18.4",null,null," - Grading capacitors insulation type designation","Y/N","xxxxxxxxxx"]
[null,"18.5",null,null," - Grading capacitors country of origin","Y/N","xxxxxxxxxx"]
[null,"18.6","3.2.15 a)","·","Grading capacitor capacitance","pF","xxxxxxxxxx"]
[null,"18.7","3.2.15 b)","·","Details of how to verify condition of grading capacitors during the life of the circuit-breaker provided with the tender documentation ","Y/N","Yes (where applicable)"]
[]
[null,"19","3.2.16","Extreme asymmetrical short-circuit interrupting capability (where applicable)"]
[null,"19.1","3.2.16","·","Circuit-breaker required to interrupt short-circuit currents with a higher degree of asymmetry than required by SANS 62271-100","Y/N",{"$f":"VLOOKUP($E$11,$M$589:$BZ$608,60,FALSE)","v":"No"}]
[null,"19.2","3.2.16","·","Proof of higher asymmetrical interrupting capability provided with tender documentation","Y/N","Yes (where applicable)"]
[]
[null,"20","3.2.17","Requirements for simultaneity of poles during single closing and single opening operations"]
[null,"20.1","3.2.17 a)","·","Contact synchronism retained within rated values during the expected maintenance interval of circuit-breaker","Y/N","Yes"]
[null,"20.2","3.2.17 a)",null,"- time interval between contact touch for all poles of the circuit-breaker ","ms","< 5"]
[null,"20.3","3.2.17 a)",null,"- time interval between contact touch for interrupters in the same pole ","ms","< 3.3"]
[null,"20.4","3.2.17 a)",null,"- time interval between contact touch for individual closing resistors - where applicable","ms","< 10"]
[null,"20.5","3.2.17 a)",null,"- time interval between contact touch for individual closing resistors in the same pole (series connected) - where applicable","ms","< 6,6"]
[null,"20.6","3.2.17 a)",null,"- time interval between contact separation for all poles of the circuit-breaker","ms","< 3,3"]
[null,"20.7","3.2.17 a)",null,"- time interval between contact separation for interrupters in the same pole","ms","< 2.5"]
[]
[null,"21","3.2.18","Controlled switching & condition monotoring (where applicable)"]
[null,"21.1","3.2.18","·","All information and details provided with the tender documentation (Controller is IEC61850 protocol compliant)","Y/N","N/A"]
[null,"21.2","3.2.18","·","All information and details provided with the tender documentation","Y/N","N/A"]
[null,"21.3"," ","·","Technical A & B schedule for controlled switching device (Point on Wave) completed and submitted","Y/N","N/A"]
[null,"21.4","3.2.18  b)","·","Circuit-breaker offered has been tested in accordance with SANS 62271-302","Y/N","N/A"]
[null,"21.5","3.2.18  b)","·","Circuit-breaker offered has been tested independent from any controlled switching device or with dedicated controller, sensors & auxiliary equipment","Y/N","Yes"]
[null,"21.6","3.2.18  c) & 3.2.23.1","·","Circuit-breaker mechanical charateristics submitted with tender documentation - which affect mechanical operating time, e.g. ambient temp, substation d.c.voltage, standing time, operating pressure","Y/N","Yes"]
[null,"21.7","3.2.18 & 3.2.23.1","·","Circuit-breaker mechanical charateristics submitted with tender documentation - which affect mechanical operating time, e.g. ambient temp, substation d.c.voltage, standing time, operating pressure","Y/N","Yes"]
[null,"21.8","3.2.18 d)",null,"Submitted with tender documentation the circuit-breaker dielectric characteristics - as a function of time (closing) and SF6 gas filling pressure up to maximum rated design pressure; upper & lower limits; critical arcing window for re-ignition-free shunt reactor opening shunt reactor","Y/N","Yes"]
[null,"21.9","3.2.18 d)",null,"Critical arcing window for re-ignition-free shunt reactor opening shunt reactor","ms","N/A"]
[null,"21.10","3.2.18 c) & d)",null,"Tolerance of +/- 1ms required as function of items under 3.2.18 c) and d)","Y/N","Yes"]
[null,"21.11","3.2.18.1",null,"Point-on-Wave switching controller shall form part of PIU (digital secondary interface) as per clause 3.2.20.1","Y/N","N/A"]
[{"$nulls":3},"·","Condition monitoring"]
[null,"21.12","3.5.5",null,"On-line condition monitoring and/or integrated diagnostic device shall be IEC61850 protocol compliant","Y/N","Yes"]
[null,"21.13","3.5.5",null,"Details of functions achieved by on-line condition monitoring and/or integrated diagnostic device submitted with tender documenttion","Y/N","Yes"]
[null,"21.14","3.5.5",null,"All information required for circuit-breaker  condition monitoring shall be supplied for each design type at contract award - Specification sheets, speed calculation points, travel curve values, etc.","Y/N","Yes"]
[]
[null,"22","3.2.19","Pole discordance (PD) or phase discrepancy"]
[null,"22.1","3.2.19","·","All information and details provided with the tender documentation","Y/N","Yes"]
[null,"22.2","3.2.19","·","The PD timer and its associated circuitry are to be provided as a separate contract item (to be located on the control panel at a remote location in the control room\nassociated with the particular circuit-breaker)","Y/N","N/A"]
[{"$nulls":4},"Timing events (with tolerances) between:-"]
[null,"22.3","3.2.19 b)",null," - main contact timing and the auxiliary contacts timing of the same pole for both opening and closing operations","ms","xxxxxxxxxx"]
[null,"22.4","3.2.19 b)",null," - main contact timing and the auxiliary contacts timing between all poles for both opening and closing operations assuming the open and close command is received simultaneously by all poles","ms","xxxxxxxxxx"]
[null,"22.5","3.2.19 b)",null," - designation of auxiliary contacts (required for future testing)","ms","xxxxxxxxxx"]
[]
[null,"23","3.2.20","Auxiliary and control circuits"]
[null,23.1,"3.2.20","·","Auxiliary and control circuit requirements (≥220kV use 0.54/07529 (Live-tank CB's) & 0.54/8557 (Dead-tank CB's))",null,{"$f":"VLOOKUP($E$11,$M$589:$DC$608,70,FALSE)","v":"240-56030489 and D-DT-5407"}]
[{"$nulls":3},"·","Auxiliary power supplies:"]
[null,23.2,null,null,"- Provision",null,"On site by Eskom"]
[null,23.3,null,null,"- Peak power requirement (max)","VA","xxxxxxxxxx"]
[null,23.4,null,null,"- Standby power requirements","VA","xxxxxxxxxx"]
[{"$nulls":3},"·","Circuit-breaker spring-charging motor control circuit (per mechanism):"]
[null,23.5,null,null,"- d.c. supply voltage range of operation","%","85 to 110"]
[null,23.6,null,null,"- d.c. current (peak starting)","A","< 30"]
[null,23.7,null,null,"- d.c. current (max continuous)","A","< 10"]
[null,23.8,null,null,"- total time taken to charge spring","s","< 10"]
[null,23.9,null,null,"- method offered for protection against continual motor running (over-run) ",null,"xxxxxxxxxx"]
[null,"23.10",null,null,"- automatic charging of closing spring",null,"Yes"]
[null,23.11,null,null,"- number of spare contacts of SLS provided (≥220kV use 0.54/07529 (LTCB's) & 0.54/8557 (DTCB's))",null,{"$f":"VLOOKUP($E$11,$M$589:$DC$608,73,FALSE)","v":"D-DT-5407"}]
[{"$nulls":3},"·","Circuit-breaker closing control circuit (per mechanism):"]
[null,23.12,null,null,"- d.c. supply voltage range of operation","%","85 to 110"]
[null,23.13,null,null,"- d.c. power (peak)","W","≤ 500"]
[null,23.14,null,null,"- number of close coils required",null,1]
[null,23.15,null,null,"- close coil current ","A","xxxxxxxxxx"]
[null,23.16,null,null,"- close coil resitance @ 200C","Ω","xxxxxxxxxx"]
[{"$nulls":3},"·","Circuit-breaker tripping control circuit (per mechanism):"]
[null,23.17,null,null,"- d.c. supply voltage range of operation","%","70 to 110"]
[null,23.18,null,null,"- d.c. power (peak)","W","≤ 500"]
[null,23.19,null,null,"- number of trip coils required",null,2]
[null,"23.20",null,null,"- physically and electrically separate trip control circuits",null,"Yes"]
[null,23.21,null,null,"- trip circuit supervision",null,"Yes"]
[null,23.22,null,null,"- trip coils rated to carry 20mA d.c. continuously",null,"Yes"]
[null,23.23,null,null,"- trip coil current ","A","xxxxxxxxxx"]
[null,23.24,null,null,"- trip coil resitance @ 200C","Ω","xxxxxxxxxx"]
[null,23.25,null,"·","Circuit-breaker equipped with anti-pumping circuitry",null,"Yes"]
[null,23.26,null,"·","d.c. isolation switch provided",null,"Yes"]
[null,23.27,null,"·","Circuit-breaker control circuit interlocks specification",null,{"$f":"VLOOKUP($E$11,$M$589:$DC$608,70,FALSE)","v":"240-56030489 and D-DT-5407"}]
[null,23.28,null,"·","Circuit-breaker alarm circuits wiring specification",null,{"$f":"VLOOKUP($E$11,$M$589:$DC$608,70,FALSE)","v":"240-56030489 and D-DT-5407"}]
[{"$nulls":3},"·","Auxiliary contacts provided (spare for Eskom use):"]
[{"$nulls":4},"    Duty rating"]
[null,23.29,null,null,"  - a.c. and d.c. supply current","A",10]
[null,"23.30",null,null,"  - N/O and N/C contact reference positions (≥220kV use 0.54/07529 (LTCB's) & 0.54/8557 (DTCB's))",null,"Circuit-breaker opened, spring discharged, gas low, relay coils de-energised"]
[{"$nulls":4},"Low insulation and/or extinguishing medium alarm"]
[null,23.31,null,null,"  - N/O",null,0]
[null,23.32,null,null,"  - N/C",null,2]
[{"$nulls":4},"Low insulation and/or extinguishing medium block contacts"]
[null,23.33,null,null,"  - N/O",null,0]
[null,23.34,null,null,"  - N/C",null,2]
[{"$nulls":4},"Spare circuit-breaker auxiliary switch contacts (per mechanism) (≥220kV use 0.54/07529 (LTCB's) & 0.54/8557 (DTCB's))"]
[null,23.35,null,null,"  - N/O",null,4]
[null,23.36,null,null,"  - N/C",null,4]
[{"$nulls":4},"Spare circuit-breaker spring limit switch contacts (per mechanism) (≥220kV use 0.54/07529 (LTCB's) & 0.54/8557 (DTCB's))"]
[null,23.37,null,null,"  - N/O",null,{"$f":"IF($G$115=\"1-pole operated (1P)\",\"2\",\"3\")","v":"3"}]
[null,23.38,null,null,"  - N/C",null,{"$f":"IF($G$115=\"1-pole operated (1P)\",\"2\",\"3\")","v":"3"}]
[{"$nulls":3},"·","Terminal blocks and terminal strips:"]
[null,23.39,null,null,"- Number of spare terminals provided",null,"≥ 6"]
[null,"23.40",null,null,"- Terminal blocks to DSP 34-253, screw clamp, spring-loaded insertion type (≥220kV use 0.54/07529 (LTCB's) & 0.54/8557 (DTCB's))",null,"Yes"]
[null,23.41,null,null,"- Terminal block width offered (above 132kV use 0.54/07529 (LTCB's) & 0.54/8557 (DTCB's))","mm","≥ 8"]
[null,23.42,null,null,"- Make of terminal block offered (≥220kV use 0.54/07529 (LTCB's) & 0.54/8557 (DTCB's))",null,"xxxxxxxxxx"]
[null,23.43,null,"·","Lugs (insulated hook blade type)",null,"Crimped"]
[null,23.44,null,"·","Earth sliding link types/equivalents (≥220kV use 0.54/07529 (LTCB's) & 0.54/8557 (DTCB's))",null,"Weidmuller\nTVP SAKA 10"]
[null,23.45,null,"·","Trunking provided on both sides of each terminal strip ",null,"Yes"]
[null,23.46,null,"·","'Fine-tooth' trunking tooth width","mm","6,1"]
[null,23.47,null,"·","Trunking size","mm","60 x 60"]
[{"$nulls":3},"·","Wiring size:"]
[null,23.48,null,null,"- CT and motor control circuit wires","mm2","2,5"]
[null,23.49,null,null,"- Control and other auxiliary wires","mm2","1,5"]
[null,"23.50",null,null,"- Minimum number of strands",null,7]
[{"$nulls":3},"·","Wiring colour:"]
[null,23.51,null,null,"- CT wires",null,"red/white/blue/black"]
[null,23.52,null,null,"- Earth wires",null,"green/yellow"]
[null,23.53,null,null,"- All other wires",null,"grey"]
[null,23.54,null,"·","Wiring identification",null,"Ferruling"]
[null,23.55,null,"·","Terminal strips numbered and designated as per drawing",null,{"$f":"VLOOKUP($E$11,$M$589:$DC$608,73,FALSE)","v":"D-DT-5407"}]
[{"$nulls":3},"·","LV MCBs:"]
[null,23.56,null,null,"- MCBs to SANS 60947-2 and IEC 60898 ",null,"Yes"]
[null,23.57,null,null,"- Make and type offered",null,"xxxxxxxxxx"]
[null,23.58,null,null,"- ICU","A","xxxxxxxxxx"]
[null,23.59,null,null,"- ICS","A","xxxxxxxxxx"]
[null,"23.60",null,null,"- Utilisation category (SANS 60947-2)",null,"'A'"]
[null,23.61,null,null,"- Max service voltage","V","xxxxxxxxxx"]
[null,23.62,null,null,"- d.c. MCB rated voltage","V","≥ 250"]
[null,23.63,null,null,"- Pollution degree (SANS 60947-2)",null,"≥ 3"]
[null,23.64,null,null,"- Suitable for isolation (SANS 60947-2)",null,"Yes"]
[null,23.65,null,null,"- Protection curve (SANS 60947-2 / IEC 60898)",null,"'C'"]
[null,23.66,null,null,"- Location",null,"Mechanism enclosure"]
[null,"23.67","3.2.20 b)","·","Circuit-breaker auxiliary and control circuit wiring interface (drawing number) (≥220kV use 0.54/07529 (LTCB's) & 0.54/8557 (DTCB's))",null,{"$f":"VLOOKUP($E$11,$M$589:$DC$608,73,FALSE)","v":"D-DT-5407"}]
[null,"23.68","3.2.20 c)","·","Bottom entry removable brass/aluminium LV gland plates provided","Y/N","Yes"]
[null,"23.69","3.2.20 d)","·","Terminal strips shall be arranged in a vertical orientation","Y/N","Yes"]
[null,"23.70","3.2.20 e)","·","Earthing point inside mechanism enclosure provided, allows 10 spare secondary control cable cores ","Y/N","Yes"]
[{"$nulls":4},"Digital secondary plant interface option:-"]
[null,"23.71","3.2.20.1",null," - is the digital secondry plnt interface offered as a option for this circuit-breaker","Y/N","xxxxxxxxxx"]
[null,"23.72","3.2.20.1",null," - does the digital secondary interface comply to the clause 3.2.20.1","Y/N","xxxxxxxxxx"]
[null,"23.73","3.2.20.1 b) & Annex C",null," - has the Technical Schedules B (of 240-6465228) specific to digital secondary interface been completed and submitted with tender documentation","Y/N","xxxxxxxxxx"]
[null,"23.74",null,null," - have all type test records been submitted with tender documentation","Y/N","xxxxxxxxxx"]
[null,"23.75",null,null," - have the wiring schematics been submitted with tender documentation","Y/N","xxxxxxxxxx"]
[]
[null,"24","3.2.21","Nameplates"]
[{"$nulls":3},"·","Nameplates provided for the following:-"]
[null,24.1,"3.2.21 a)",null,"- circuit-breaker (SANS 62271-100)","Y/N","Yes"]
[null,24.2,"3.2.21 b)",null,"- circuit-breaker operating mechanism (SANS 62271-100)","Y/N","Yes"]
[null,"24.3",null,null,"- CT (SANS 60044-1 / NRS 029)","Y/N",{"$f":"IF($G$110=\"Yes\",\"Yes\",\"N/A\")","v":"N/A"}]
[null,"24.4","3.2.21 c)","·","Circuit-breaker also tested according to SANS 62271-302 shall make special reference on its nameplate","Y/N","Yes"]
[null,"24.5","3.2.21 d)","·","Method used to attach nameplates (riveted or screwed on)",null,"xxxxxxxxxx"]
[null,"24.6","3.2.21 d)","·","Nameplate material offered weather-proof and inherently corrosion-resistant (engraved aluminium or stainless steel)",null,"xxxxxxxxxx"]
[null,"24.7","3.2.21 e)","·","Duplicate nameplates provided for CTs on inside of operating mechanism enclosure front access door","Y/N",{"$f":"IF($G$110=\"Yes\",\"Yes\",\"N/A\")","v":"N/A"}]
[null,"24.8","3.2.21 f)","·","Actual ratings of DCB type-tested values shall be displayed on nameplates","Y/N","Yes"]
[]
[null,"25","3.2.22 / 3.5.3","Tools and spares"]
[{"$nulls":3},"·","Tools to be supplied with circuit-breaker (minimum requirements):"]
[null,25.1,"3.2.22 a)",null,"- full set of operating tools (Has the list on separate sheet been provided?)","Sets","1 set per circuit-breaker"]
[null,25.2,"3.2.22 b)",null,"- tools fitted on inside of the front access door","Y/N","Yes"]
[null,25.3,"3.2.22 c)","·","Standard tools available for minor maintenance (Has the list on separate sheet been provided?)","Y/N","Yes"]
[null,25.4,"3.2.22 d)","·","Specialised tools available for major maintenance purposes (Has the list on separate sheet been provided?)","Y/N","Yes"]
[null,25.5,"3.2.22 e) / 3.5.3","·","Spares available for maintenance (Has the list on separate sheet been provided?)","Y/N","Yes"]
[null,"25.6","3.2.22 f)",null,"Written letter, in case of design obsolescence has been provided?","Y/N","Yes"]
[null,"26","3.2.23","Documentation"]
[{"$nulls":3},"Note:  All tender documentation to be provided in electronic\n          format."]
[null,null,"3.2.23.1","·","Documentation to be supplied with tender:"]
[null,26.1,null,null,"- GA drawing (provide drawing number on separate sheet provided)","Sets",1]
[null,26.2,null,null,"- Drawing of all insulators used in the circuit-breaker (provide drawing number on separate sheet provided)","Sets",1]
[null,26.3,null,null,"- Generic layout of nameplates (provide drawing number on separate sheet provided)","Sets",1]
[null,26.4,null,null,"- Generic auxiliary and control circuit schematic wiring diagram (provide drawing number on separate sheet provided)","Sets",1]
[null,26.5,null,null,"- GA drawing of the operating mechanism enclosure","Sets",1]
[null,26.6,null,null,"- list of spare parts with prices for each circuit-breaker offered (provide list on separate sheet provided)","Sets",1]
[null,26.7,null,null,"- list of all operating tools for each circuit-breaker offered (Has the list on separate sheet been provided?)","Sets",1]
[null,26.8,null,null,"- list of all standard minor maintenance tools for each circuit-breaker offered (Has the list on separate sheet been provided?)","Sets",1]
[null,26.9,null,null,"- list of all specialised major maintenance tools for each circuit-breaker offered (Has the list on separate sheet been provided?)","Sets",1]
[null,"26.10",null,null,"- full list as well as copies of type test certificates and reports (Has the report numbers on separate sheet been provided?)","Sets",1]
[null,26.11,null,null,"- generic routine test certificates for each circuit-breaker","Sets",1]
[null,26.12,null,null,"- transport, storage, installation, operating and maintenance manuals","Sets",1]
[null,26.13,null,null,"- training material","Sets",1]
[null,"26.14",null,null,"- generic quality inspection and test plan (QITP)","Sets",1]
[null,26.15,null,null,"- all other relevant additional information requested","Sets",1]
[null,null,"3.2.23.2","·","Documentation to be supplied with each circuit-breaker:"]
[null,26.16,null,null,"- Schematic wiring diagram for circuit-breaker","Sets",1]
[null,26.17,null,null,"- Complete set of routine test certificates for circuit-breaker","Sets",1]
[null,26.18,null,null,"- Commissioning and hand-over test sheet","Sets",1]
[null,26.19,null,null,"- Transport, storage, installation, operating and maintenance manuals","Sets",1]
[null,"26.20","3.2.23.4","·","Submission of documentation requested upon awarding of contract ","Y/N","Yes"]
[null,"26.21",null,"·","Units used in Republic of South Africa",null,"In tender/offer"]
[null,"26.22",null,"·","Project reference list, service to Eskom",null,"In tender/offer"]
[]
[null,"27","3.2.24","Packaging requirements"]
[null,"27.1","3.2.24 a)","·","Each individual circuit-breaker unit packed","Y/N","Yes"]
[null,"27.2","3.2.24 b)","·","Containers (e.g. wooden crates) suitable for transport and storage over long periods (for up to 18 months) (NB: preservation requirements in QM-58) ","Y/N","Yes"]
[null,"27.3","3.2.24 c)","·","Durable waterproof packaging designed to prevent damage to components during transportation and storage on site","Y/N","Yes"]
[null,"27.4","3.2.24 c)","·","Suitable ventilation provided to minimise condensation","Y/N","Yes"]
[null,"27.5","3.2.24 d)","·","Packaging able to withstand impact loadings of at least 18 kN","Y/N","Yes"]
[null,"27.6","3.2.24 e)","·","Each crate clearly and sequentially marked","Y/N","Yes"]
[null,"27.7","3.2.24 f)","·","Each container/crate clearly marked with a durable label using an indelible font with all specified information in 240-56063756","Y/N","Yes"]
[null,"27.8","3.2.24 g)","·","Exposed shafts, bearings and machined surfaces treated with a temporary anti-corrosive coating","Y/N","Yes"]
[null,"27.9","3.2.24 h)","·","Loose components or components that are subject to damage from exposure to dust or water packed in hermetically sealed plastic bags","Y/N","Yes"]
[null,"27.10","3.2.24 i)","·","All components clearly marked","Y/N","Yes"]
[null,"27.11","3.2.24 j)","·","Fork-lift lifting points provided on the packaging - where applicable","Y/N","Yes"]
[null,"27.12","3.2.24 k)","·","External temporary 230 V a.c. connection point for the heater circuit provided ","Y/N","Yes"]
[null,"27.13","3.2.24 l)","·","Non-resettable impact recorder/detector provided ","Y/N","Yes"]
[null,"27.14","3.2.24 m)","·","Circuit-breaker transported with a positive gas pressure of maximum 150 kPa - where applicable","Y/N","Yes"]
[null,"27.15","3.2.24 n)","·","Copy of the BOM shall be provided with the delivery note ","Y/N","Yes"]
[]
[null,"28",null,"Miscellaneous"]
[{"$nulls":3},"·","General"]
[null,"28.1","3.4.7.1 a) & NOTES","·","Test equipment used for precommissioning shall be in accordance with 240-56063756","Y/N","Yes"]
[null,"28.2","3.5.2 & 3.2.23.1 p)","·","Written commitment to provide Inspection and maintenance DVD has been provided with tender docs","Y/N","Yes"]
[null,"28.3","3.5.3.2  & 3.2.23.1 p)","·","Required period for spares availability","Years","25 years after discontinuation of switchgear"]
[null,"28.4","3.5.3.2",null,"Availability of trip coils, close coils, spring charging motors, density monitoring devices, contactors & relays","Hours",12]
[null,"28.5","3.5.5","·","Specification sheets, speed calculation points, travel curve values shall be provided at contract awarding","Y/N","Yes"]
[]
[null,"29","3.7","Training Requirements"]
[null,"29.1",null,"·","Training offered in accordance with 240-56065202","Y/N","Yes"]
[null,"29.2",null,"·","Will the training levels to be adapted to the Training Levels 1 to 4 in accordance with 240-56065202","Y/N","Yes"]
[null,"29.3",null,"·","Has the detailed training programme in accordance with the training standard 240-56065202 been submitted with tender documentation","Y/N","Yes"]
[]
[]
[null,"SIGNATURES"]
[]
[{"$nulls":4},"         "]
[null,"Supplier",null,null,"Name (Print)",null,"Sign","Date"]
[]
[{"$nulls":4},"         "]
[null,"Factory",null,null,"Name (Print)",null,"Sign","Date"]
[]
[{"$nulls":4},"         "]
[null,"Eskom",null,null,"Name (Print)",null,"Sign","Date"]
[]
[]
[]
[]
[]
[{"$nulls":12},"Description","Buyer's Guide Drawing","SAP No","Rated Voltage","Ud","Up","Us","Ir - bkr","Ik, Ike","Ip, Ipe","Isc","fptcf","TRV","Imake","Op Seq","C class (line & cable)","Ii","Ic","C class (cap bank)","Isb","Ibb","Ibi","M class","No ops","E class","CB class","App","Vn","Network earthing","d.c. supply voltage","pole operation","P core class","BZ core class","External Creepage (USCD)","BZ core ratios","P core ratios","M core ratios","M core class","M core burden","4.101.2 factor by which 1-phase SC breaking current exceeds 3-phase","Out-of-phase breaking current","Class of pollution","Design","CTs required? (Yes / No)","Support structure design","Supplied with steel support structure?","SF6/Enviro-friendly","Support Structure","Foundation","Common base frame supplied with circuit-breaker (Y/N/N/A)","support structure to be designed by manufacturer","foundation to be designed by manufacturer","CB designed to interface with Eskom steel support structure","CB steel support structure designed to interface with Eskom concrete foundation","Earthing  via support structure and holding down bolts","Additional connector provided between the circuit-breaker and the support structure","electrical working clearance","insulator material (Ceramic / Silicone rubber composite)","DILO fitting","Circuit-breaker to interrupt short-circuit currents with a higher degree of asymmetry than required by SANS 62271-100","Main terminals (Flat pad)","phase-phase clearances (mm)","type of CT (Post-type / Ring-type / N/A)","CT spec (NRS 029 / SANS 60044-1/ N/A)","No ofCT cores (2M & 2P / N/A)","Position rel to CB (One side, both sides, N/A)","P cores (e.g.  CORES 2 & 4)","M cores","Rated static terminal load shall be according to SANS 62271-100 Clause 6.101.6","Wiring Standard","Main terminal No of holes and pitch (pad)","Main terminal thickness (pad)","Wiring drawing","BZ cores (e.g.  CORES 2 & 4)"]
[]
[{"$nulls":12},"Select item from list . . .","__________","__________","__________","__________","__________","__________","__________","__________","__________","__________","__________","__________","__________","__________","__________","__________","__________","__________","__________","__________","__________","__________","__________","__________","__________","__________","__________","__________","__________","__________","__________","__________","__________","__________","__________","__________","__________","__________","__________","__________","__________","__________","__________","__________","__________","__________","__________","__________","__________","__________","__________","__________","__________","__________","__________","__________","__________","__________","__________","__________","__________","__________","__________","__________","__________","__________","__________","__________","__________","__________","__________","__________","__________"]
[{"$nulls":12},"BKR 132kV 3150A 40kA 3P 31 110VDC","_________","_________",145,275,650,"N/A",3150,40,100,40,"1,5","SANS 62271-100 Table 4",100,"O-0,3s-CO-3m-CO (all poles) ","Class C2",50,160,"xxxxxxxxxx","xxxxxxxxxx","xxxxxxxxxx","xxxxxxxxxx","Class M2",10000,"Yes","xxxxxxxxxx","General-purpose",132,"Non-effective",110,"3-pole operated (3P)","N/A","N/A","53,7","N/A","N/A","N/A","N/A","N/A","xxxxxxxxxx","xxxxxxxxxx","Very heavy ('e')","Live-tank","No","2 column support with common base frame","No","SF6/Enviro-friendly","D-DT-5200 Sh 2","D-DT-5200 Sh 1","Yes","No","No","Yes","Yes","Yes","Yes",3950,"Ceramic (porcelain)/ Silicone rubber composite","DILO DN8","No","Flat pad","xxxxxxxxxx","N/A","N/A","N/A","N/A","N/A","N/A","No","240-56030489 and D-DT-5407","8 x 50",20,"D-DT-5407","N/A"]
{"$rows_empty":23}
[{"$nulls":30},"Class C2",400,400,20]
[{"$nulls":30},"Class C2",400,400,20]
[{"$nulls":30},"Class C2",400,400,20]
[{"$nulls":30},"Class C2",400,400,20]
[{"$nulls":30},"Class C2",400,400,20]
[{"$nulls":30},"Class C2",400,400,20]
[{"$nulls":30},"Class C2",400,400,20]
[{"$nulls":30},"Class C2",400,400,20]
[{"$nulls":30},"Class C2",400,400,20]
[{"$nulls":30},"Class C2",400,400,20]
[{"$nulls":30},"Class C2",400,400,20]
[{"$nulls":30},"Class C2",400,400,20]
[{"$nulls":30},"Class C2",400,400,20]
[{"$nulls":30},"Class C2",400,400,20]
[{"$nulls":30},"Class C2",400,400,20]
[{"$nulls":30},"Class C2",400,400,20]
[{"$nulls":30},"Class C2",400,400,20]
[{"$nulls":30},"Class C2",400,400,20]
[{"$nulls":30},"Class C2",400,400,20]

{"sheet":"Deviation Schedule- 132kV CB 3P","index":1,"n_rows":49,"n_cols":8,"rows_kept":49,"merged":[[0,1,0,7],[1,1,1,7],[2,3,2,7],[3,3,3,7],[4,3,4,7],[5,3,5,7],[6,3,6,7],[7,3,7,7],[8,3,8,7],[9,3,9,7],[10,3,10,7],[11,3,11,7],[12,3,12,7],[13,3,13,7],[14,3,14,7],[15,3,15,7],[16,3,16,7],[17,3,17,7],[18,3,18,7],[19,3,19,7],[20,3,20,7],[21,3,21,7],[22,3,22,7],[23,3,23,7],[24,3,24,7],[25,3,25,7],[26,3,26,7],[27,3,27,7],[28,3,28,7],[29,3,29,7],[30,3,30,7],[31,3,31,7],[32,3,32,7],[33,3,33,7],[34,3,34,7],[35,3,35,7],[36,3,36,7],[37,3,37,7],[38,3,38,7],[39,1,39,4],[42,1,42,2],[45,1,45,2],[48,1,48,2]]}
[null,"Deviation Schedule - 132 kV Live-tank circuit-breaker 3P offered"]
[null,"Any Deviation offered to this (240-56063756) Standard specification shall be listed below with reasons for deviations. In addition evidence shall be provided that the deviation proposed will be at least more cost-effective than that spcified by Eskom."]
[null,"Item","Clause","Proposed Deviation"]
[]
[{"$nulls":3},"NO DEVIATIONS TO SPECIFICATION"]
{"$rows_empty":34}
[null,"SIGNATURES"]
[]
[{"$nulls":4},"         "]
[null,"Supplier",null,null,"Name (Print)",null,"Sign","Date"]
[]
[{"$nulls":4},"         "]
[null,"Factory",null,null,"Name (Print)",null,"Sign","Date"]
[]
[{"$nulls":4},"         "]
[null,"Eskom",null,null,"Name (Print)",null,"Sign","Date"]

{"sheet":"Tool,Spare,Drwg,TypeT 132kV 3P","index":2,"n_rows":164,"n_cols":8,"rows_kept":164,"merged":[[0,1,0,7],[1,1,1,7],[2,1,2,7],[3,2,3,3],[3,4,3,5],[4,2,4,7],[5,2,5,3],[5,4,5,5],[6,2,6,3],[6,4,6,5],[7,2,7,3],[7,4,7,5],[8,2,8,3],[8,4,8,5],[9,2,9,3],[9,4,9,5],[10,2,10,3],[10,4,10,5],[11,2,11,3],[11,4,11,5],[12,2,12,3],[12,4,12,5],[13,2,13,3],[13,4,13,5],[14,2,14,3],[14,4,14,5],[15,2,15,3],[15,4,15,5],[16,2,16,3],[16,4,16,5],[17,2,17,3],[17,4,17,5],[18,2,18,3],[18,4,18,5],[19,2,19,7],[20,2,20,3],[20,4,20,5],[21,2,21,3],[21,4,21,5],[22,2,22,3],[22,4,22,5],[23,2,23,3],[23,4,23,5],[24,2,24,3],[24,4,24,5],[25,2,25,3],[25,4,25,5],[26,2,26,3],[26,4,26,5],[27,2,27,3],[27,4,27,5],[28,2,28,3],[28,4,28,5],[29,2,29,3],[29,4,29,5],[30,2,30,3],[30,4,30,5],[31,2,31,7],[32,2,32,3],[32,4,32,5],[33,2,33,3],[33,4,33,5],[34,2,34,3],[34,4,34,5],[35,2,35,3],[35,4,35,5],[36,2,36,3],[36,4,36,5],[37,2,37,3],[37,4,37,5],[38,2,38,3],[38,4,38,5],[39,2,39,3],[39,4,39,5],[40,2,40,3],[40,4,40,5],[41,2,41,3],[41,4,41,5],[42,2,42,3],[42,4,42,5],[43,2,43,7],[44,2,44,3],[44,4,44,5],[45,2,45,3],[45,4,45,5],[46,2,46,3],[46,4,46,5],[47,2,47,3],[47,4,47,5],[48,2,48,3],[48,4,48,5],[49,2,49,3],[49,4,49,5],[50,2,50,3],[50,4,50,5],[51,2,51,3],[51,4,51,5],[52,2,52,3],[52,4,52,5],[53,2,53,3],[53,4,53,5],[54,2,54,3],[54,4,54,5],[55,2,55,7],[56,2,56,3],[56,4,56,5],[57,2,57,3],[57,4,57,5],[58,2,58,3],[58,4,58,5],[59,2,59,3],[59,4,59,5],[60,2,60,3],[60,4,60,5],[61,2,61,3],[61,4,61,5],[62,2,62,3],[62,4,62,5],[63,2,63,3],[63,4,63,5],[64,2,64,3],[64,4,64,5],[65,2,65,3],[65,4,65,5],[66,2,66,3],[66,4,66,5],[67,2,67,7],[68,2,68,3],[68,4,68,5],[69,2,69,3],[69,4,69,5],[70,2,70,3],[70,4,70,5],[71,2,71,3],[71,4,71,5],[72,2,72,3],[72,4,72,5],[73,2,73,3],[73,4,73,5],[74,2,74,3],[74,4,74,5],[75,2,75,3],[75,4,75,5],[76,2,76,3],[76,4,76,5],[77,2,77,3],[77,4,77,5],[78,2,78,3],[78,4,78,5],[79,2,79,3],[79,4,79,5],[80,2,80,3],[80,4,80,5],[81,2,81,7],[82,2,82,3],[82,4,82,5],[83,2,83,3],[83,4,83,5],[84,2,84,3],[84,4,84,5],[85,2,85,3],[85,4,85,5],[86,2,86,3],[86,4,86,5],[87,2,87,3],[87,4,87,5],[88,2,88,3],[88,4,88,5],[89,2,89,3],[89,4,89,5],[90,2,90,3],[90,4,90,5],[91,2,91,3],[91,4,91,5],[92,2,92,3],[92,4,92,5],[93,2,93,3],[93,4,93,5],[94,2,94,3],[94,4,94,5],[95,2,95,3],[95,4,95,5],[96,2,96,3],[96,4,96,5],[97,2,97,3],[97,4,97,5],[98,2,98,3],[98,4,98,5],[99,2,99,3],[99,4,99,5],[100,2,100,3],[100,4,100,5],[101,2,101,3],[101,4,101,5],[102,2,102,3],[102,4,102,5],[103,2,103,3],[103,4,103,5],[104,2,104,3],[104,4,104,5],[105,2,105,3],[105,4,105,5],[106,2,106,3],[106,4,106,5],[107,2,107,3],[107,4,107,5],[108,2,108,3],[108,4,108,5],[109,2,109,3],[109,4,109,5],[110,2,110,3],[110,4,110,5],[111,2,111,3],[111,4,111,5],[112,2,112,3],[112,4,112,5],[113,2,113,7],[114,2,114,3],[114,4,114,5],[115,2,115,3],[115,4,115,5],[116,2,116,3],[116,4,116,5],[117,2,117,3],[117,4,117,5],[118,2,118,3],[118,4,118,5],[119,2,119,3],[119,4,119,5],[120,2,120,3],[120,4,120,5],[121,2,121,3],[121,4,121,5],[122,2,122,3],[122,4,122,5],[123,2,123,3],[123,4,123,5],[124,2,124,7],[126,2,126,3],[127,2,127,3],[128,2,128,3],[129,2,129,3],[130,2,130,3],[131,2,131,3],[132,2,132,3],[133,2,133,3],[134,2,134,3],[135,2,135,3],[136,2,136,3],[137,2,137,3],[138,2,138,3],[139,2,139,3],[140,2,140,3],[141,2,141,3],[142,2,142,3],[143,2,143,3],[144,2,144,3],[145,2,145,3],[146,2,146,3],[147,2,147,3],[148,2,148,3],[149,2,149,3],[150,2,150,3],[151,2,151,3],[152,2,152,3],[153,3,153,7],[154,1,154,4],[157,1,157,2],[160,1,160,2],[163,1,163,2]]}
[null,"Tools, Spares, Drawings and Type Test reports/ certificates Schedule for 132 kV Live-tank circuit-breaker 3P offered"]
[null,"OUTDOOR CIRCUIT-BREAKERS"]
[null,"CB Type and Ratings: "]
[null,1,2,null,3,null,4,5]
[null,"T.1","Full set of operating tools required 1 set per circuit-breaker upon delivery at site (provide a detailed list)"]
[null,"Item","Quantity",null,"Description",null,"Drawing Number","Part Number"]
[null,1]
[null,2]
[null,3]
[null,4]
[null,5]
[null,6]
[null,7]
[null,8]
[null,9]
[null,10]
[null,11]
[null,12]
[null,13]
[null,"T.2 a)","Standard tools available for minor maintenance (provide a detailed list)"]
[null,"Item","Quantity",null,"Description",null,"Drawing Number","Part Number"]
[null,1]
[null,2]
[null,3]
[null,4]
[null,5]
[null,6]
[null,7]
[null,8]
[null,9]
[null,10]
[null,"T.2 b)","Specialised tools available for major maintenance purposes (provide a detailed list)"]
[null,"Item","Quantity",null,"Description",null,"Drawing Number","Part Number"]
[null,1]
[null,2]
[null,3]
[null,4]
[null,5]
[null,6]
[null,7]
[null,8]
[null,9]
[null,10]
[null,"T.3 a)","Spares available for maintenance - for breakdown repairs (provide a detailed list)"]
[null,"Item","Quantity",null,"Description",null,"Drawing Number","Part Number"]
[null,1]
[null,2]
[null,3]
[null,4]
[null,5]
[null,6]
[null,7]
[null,8]
[null,9]
[null,10]
[null,"T.3 b)","Spares available for maintenance - for non-intrusive maintenance minor inspection (provide a detailed list)"]
[null,"Item","Quantity",null,"Description",null,"Drawing Number","Part Number"]
[null,1]
[null,2]
[null,3]
[null,4]
[null,5]
[null,6]
[null,7]
[null,8]
[null,9]
[null,10]
[null,"T.3 c)","Spares available for maintenance -for intrusive maintenance major overhaul inspection (provide a detailed list)"]
[null,"Item","Quantity",null,"Description",null,"Drawing Number","Part Number"]
[null,1]
[null,2]
[null,3]
[null,4]
[null,5]
[null,6]
[null,7]
[null,8]
[null,9]
[null,10]
[null,11]
[null,12]
[null,"T.3 d)","Complete Spare parts (provide a detailed list)"]
[null,"Item","Quantity",null,"Description",null,"Drawing Number","Part Number"]
[null,1]
[null,2]
[null,3]
[null,4]
[null,5]
[null,6]
[null,7]
[null,8]
[null,9]
[null,10]
[null,11]
[null,12]
[null,13]
[null,14]
[null,15]
[null,16]
[null,17]
[null,18]
[null,19]
[null,20]
[null,21]
[null,22]
[null,23]
[null,24]
[null,25]
[null,26]
[null,27]
[null,28]
[null,29]
[null,30]
[null,"T.4","Drawings (provide the complete list)"]
[null,"Item","Revision No",null,"Description",null,"Drawing Number","Eskom No (to be allocated)"]
[null,"4.1",null,null,"General Arrangement (GA) outline drawing "]
[null,"4.2",null,null,"Drawing of all insulators used in the circuit-breaker "]
[null,"4.3",null,null,"Generic layout of nameplates - complete CB, Pole, Mechanism and Motors"]
[null,"4.4",null,null,"Generic auxiliary and control circuit schematic wiring diagram"]
[null,"4.5",null,null,"GA drawing of the operating mechanism enclosure"]
[null,"4.6",null,null,"Steel support structure dimensioned outline and general arrangement"]
[null,"4.7",null,null,"Steel support structure dimensioned outline and general arrangement"]
[null,"4.8",null,null,"Other submitted drawings (namely):-"]
[null,"4.9",null,null,"Other submitted drawings (namely):-"]
[null,"T.5","Type Tests Reports/ Certificates (provide the complete list of type-tests performed as per Spec clause 3.3.2)"]
[null,"Item","Date test performed",null,"Description","Passed test/ failed ","Test Facility","Test Report Number"]
[null,5.1,null,null,"Insulation level (SANS 62271-100 6.2); dry lightning impulse withstand voltage\ntest (BIL or LIWL) "]
[null,"5.2",null,null,"Dry power frequency withstand level voltage tests (PFWL) (SANS 62271-100 )"]
[null,"5.3",null,null,"Wet power frequency voltage withstand level (PFWL) test (SANS 62271-100 )"]
[null,"5.4",null,null,"Dry switching impulse withstand level voltage test (SIWL) (SANS 62271-100)"]
[null,"5.5",null,null,"Temperature rise and measurement of resistance of circuits (SANS 62271-100 6.5 & 6.4)"]
[null,"5.6",null,null,"Breaking current withstand - main circuit (SANS 62271-100 6.6)"]
[null,"5.7",null,null,"Short-circuit making and breaking capacities (SANS 62271-100 6.102 to\n6.106)"]
[null,"5.8",null,null,"Critical current tests (where applicable) (SANS 62271-100 6.107)"]
[null,"5.9",null,null,"Single-phase tests (for Un ≥ 66 kV ) (SANS 62271-100 6.108)"]
[null,"5.10",null,null,"Double earth fault tests (for Un ≥  132 kV ) (SANS 62271-100 6.108)"]
[null,"5.11",null,null,"Short-line fault tests (for class S2 circuit-breakers and Un ≥ 66 kV) (SANS 62271-100\n6.109)"]
[null,"5.12",null,null,"Out-of-phase making and breaking tests (applicable if an out-of-phase rating is assigned)\n(SANS 62271-100 6.110)"]
[null,"5.13",null,null,"Capacitive current switching tests (SANS 62271-100 6.111)"]
[null,"5.14",null,null,"Switching of shunt reactors (for Un ≥ 66 kV ) (SANS 62271-110)"]
[null,"5.15",null,null,"Electrical endurance tests (for class E2 circuit-breakers) (SANS 62271-100 6.112)"]
[null,"5.16",null,null,"Circuit-breaker mechanical operation (SANS 62271-100 6.101.2.1 - 6.101.2.3)"]
[null,"5.17",null,null,"Circuit-breaker extended mechanical endurance tests (for class M2 circuit-breakers) (SANS\n62271-100 6.101.2.4)"]
[null,"5.18",null,null,"Radio interference voltage tests (for Un ≥ 132 kV) (SANS 62271-100 6.3)"]
[null,"5.19",null,null,"Verification of the protection (IP coding) (SANS 62271-100 6.7) "]
[null,"5.20",null,null,"Tightness test (SANS 62271-100 6.8"]
[null,"5.21",null,null,"EMC tests (SANS 62271-100 6.9) - where applicable"]
[null,"5.22",null,null,"X-radiation test procedures for vacuum interrupters (SANS 62271-100) - where applicable"]
[null,"5.23",null,null,"Static terminal load tests (for Un ≥ 66 kV ) (SANS 62271-100 6.101.6)"]
[null,"5.24",null,null,"Additional tests on auxiliary and control circuits (SANS 62271-100 6.10)"]
[null,"5.25",null,null,"Other special tests performed: "]
[null,"5.26",null,null,"Other special tests performed: "]
[null,"5.27",null,null,"Other special tests performed: "]
[]
[null,"SIGNATURES"]
[]
[{"$nulls":4},"         "]
[null,"Supplier",null,null,"Name (Print)",null,"Sign","Date"]
[]
[{"$nulls":4},"         "]
[null,"Factory",null,null,"Name (Print)",null,"Sign","Date"]
[]
[{"$nulls":4},"         "]
[null,"Eskom",null,null,"Name (Print)",null,"Sign","Date"]